[Event "*** Titled Tuesday Blitz"]
[Site "Chess.com"]
[Date "2020.11.03"]
[Round "11"]
[White "Brave_spirit12"]
[Black "Nuvas"]
[Result "1-0"]
[WhiteElo "2499"]
[BlackElo "2321"]
[TimeControl "180+1"]
[EndTime "12:06:44 PST"]
[Termination "Brave_spirit12 won by resignation"]

1. e4 {[%clk 0:03:00.6]} 1... c5 {[%clk 0:03:00]} 2. c3 {[%clk 0:03:00.7]} 2...
Nf6 {[%clk 0:02:59.8]} 3. e5 {[%clk 0:03:00.8]} 3... Nd5 {[%clk 0:03:00.4]} 4.
d4 {[%clk 0:03:01]} 4... cxd4 {[%clk 0:03:00.8]} 5. Qxd4 {[%clk 0:03:00.3]} 5...
e6 {[%clk 0:03:00.7]} 6. Nf3 {[%clk 0:02:59]} 6... Nc6 {[%clk 0:03:00.8]} 7. Qe4
{[%clk 0:02:59.2]} 7... f5 {[%clk 0:03:00.9]} 8. exf6 {[%clk 0:02:59]} 8... Nxf6
{[%clk 0:03:00.8]} 9. Qh4 {[%clk 0:02:59.6]} 9... Be7 {[%clk 0:03:00.6]} 10. Bd3
{[%clk 0:02:59.1]} 10... O-O {[%clk 0:02:41.9]} 11. Bg5 {[%clk 0:02:57.5]} 11...
g6 {[%clk 0:02:33.9]} 12. Nbd2 {[%clk 0:02:50.8]} 12... d5 {[%clk 0:02:31.6]}
13. O-O-O {[%clk 0:02:42.7]} 13... e5 {[%clk 0:02:31.7]} 14. Rhe1 {[%clk
0:02:26.7]} 14... e4 {[%clk 0:02:24.9]} 15. Nxe4 {[%clk 0:02:25.4]} 15... Nxe4
{[%clk 0:02:20]} 16. Bxe4 {[%clk 0:02:18.8]} 16... Rxf3 {[%clk 0:01:55.2]} 17.
Bxd5+ {[%clk 0:02:10.6]} 1-0

[Event "*** Titled Tuesday Blitz"]
[Site "Chess.com"]
[Date "2020.11.03"]
[Round "11"]
[White "Forantes"]
[Black "Roza_Idrisova"]
[Result "1-0"]
[WhiteElo "2362"]
[BlackElo "2186"]
[TimeControl "180+1"]
[EndTime "12:07:03 PST"]
[Termination "Forantes won by resignation"]

1. f4 {[%clk 0:03:00]} 1... d5 {[%clk 0:02:59]} 2. b3 {[%clk 0:02:59.2]} 2...
Bf5 {[%clk 0:02:58]} 3. Bb2 {[%clk 0:02:59.5]} 3... e6 {[%clk 0:02:57.6]} 4. Nf3
{[%clk 0:02:59.8]} 4... Nf6 {[%clk 0:02:56.8]} 5. e3 {[%clk 0:03:00.4]} 5... h6
{[%clk 0:02:56.6]} 6. Bd3 {[%clk 0:03:00.9]} 6... Bd6 {[%clk 0:02:51.5]} 7. O-O
{[%clk 0:03:00.6]} 7... O-O {[%clk 0:02:51.1]} 8. Qe1 {[%clk 0:02:59.8]} 8... c5
{[%clk 0:02:50.1]} 9. Na3 {[%clk 0:02:57.2]} 9... a6 {[%clk 0:02:48.8]} 10. Bxf5
{[%clk 0:02:51.9]} 10... exf5 {[%clk 0:02:48.5]} 11. Nh4 {[%clk 0:02:52.1]}
11... g6 {[%clk 0:02:44.3]} 12. c4 {[%clk 0:02:45.9]} 12... Nc6 {[%clk
0:02:41.2]} 13. cxd5 {[%clk 0:02:45.6]} 13... Nxd5 {[%clk 0:02:39.6]} 14. Nc4
{[%clk 0:02:45.1]} 14... Be7 {[%clk 0:02:37.9]} 15. Nxf5 {[%clk 0:02:42]} 15...
gxf5 {[%clk 0:02:32]} 16. Qg3+ {[%clk 0:02:41.8]} 16... Bg5 {[%clk 0:02:31.8]}
17. h4 {[%clk 0:02:41.9]} 17... f6 {[%clk 0:02:25.2]} 18. hxg5 {[%clk
0:02:39.1]} 18... fxg5 {[%clk 0:02:25.2]} 19. fxg5 {[%clk 0:02:32.6]} 19... Qxg5
{[%clk 0:02:24.4]} 20. Qd6 {[%clk 0:02:30.8]} 20... Rad8 {[%clk 0:02:17.2]} 21.
Qe6+ {[%clk 0:02:31.1]} 21... Kh7 {[%clk 0:02:15]} 22. Nd6 {[%clk 0:02:28.6]}
22... Rg8 {[%clk 0:02:07.9]} 23. Qf7+ {[%clk 0:02:21]} 23... Rg7 {[%clk
0:02:03.1]} 24. Bxg7 {[%clk 0:02:20.9]} 24... Qxg7 {[%clk 0:02:01.1]} 25. Qxf5+
{[%clk 0:02:21.1]} 25... Qg6 {[%clk 0:01:57.2]} 26. Qxd5 {[%clk 0:02:15.1]}
26... Rxd6 {[%clk 0:01:54.9]} 27. Rf7+ {[%clk 0:02:12.3]} 27... Kh8 {[%clk
0:01:54.7]} 28. Rf8+ {[%clk 0:02:11.6]} 28... Kh7 {[%clk 0:01:53.7]} 29. Qf7+
{[%clk 0:02:05.1]} 29... Qxf7 {[%clk 0:01:51.2]} 30. Rxf7+ {[%clk 0:02:06]}
30... Kg6 {[%clk 0:01:51.5]} 31. Rxb7 {[%clk 0:02:06.4]} 31... Rxd2 {[%clk
0:01:51.4]} 32. Rb6 {[%clk 0:02:05.8]} 32... Rd6 {[%clk 0:01:50.9]} 33. Rc1
{[%clk 0:02:05.4]} 33... Rf6 {[%clk 0:01:46.6]} 34. Rxc5 {[%clk 0:02:04.8]}
34... Ne7 {[%clk 0:01:45.6]} 35. Rxf6+ {[%clk 0:02:04.7]} 35... Kxf6 {[%clk
0:01:45.4]} 36. Ra5 {[%clk 0:02:05.6]} 1-0

[Event "*** Titled Tuesday Blitz"]
[Site "Chess.com"]
[Date "2020.11.03"]
[Round "11"]
[White "Skat2704"]
[Black "CaspiIsrael"]
[Result "0-1"]
[WhiteElo "2442"]
[BlackElo "2608"]
[TimeControl "180+1"]
[EndTime "12:07:10 PST"]
[Termination "CaspiIsrael won by resignation"]

1. d4 {[%clk 0:03:00.8]} 1... Nf6 {[%clk 0:02:17]} 2. c4 {[%clk 0:03:00.4]} 2...
e6 {[%clk 0:02:17]} 3. Nf3 {[%clk 0:03:00]} 3... d5 {[%clk 0:02:17.5]} 4. Nc3
{[%clk 0:02:59.6]} 4... dxc4 {[%clk 0:02:17.9]} 5. Bg5 {[%clk 0:02:58.9]} 5...
a6 {[%clk 0:02:11.6]} 6. e4 {[%clk 0:02:57.8]} 6... b5 {[%clk 0:02:11.3]} 7. e5
{[%clk 0:02:57.7]} 7... h6 {[%clk 0:02:11.7]} 8. Bh4 {[%clk 0:02:57.8]} 8... g5
{[%clk 0:02:12.2]} 9. Nxg5 {[%clk 0:02:51.4]} 9... hxg5 {[%clk 0:02:12.3]} 10.
Bxg5 {[%clk 0:02:51.7]} 10... Nbd7 {[%clk 0:02:13.2]} 11. g3 {[%clk 0:02:48.8]}
11... Bb7 {[%clk 0:02:12.6]} 12. f3 {[%clk 0:02:45.7]} 12... Bh6 {[%clk
0:02:10]} 13. Bxh6 {[%clk 0:02:36.9]} 13... Rxh6 {[%clk 0:02:10.9]} 14. exf6
{[%clk 0:02:37.5]} 14... Qxf6 {[%clk 0:02:06.6]} 15. Bg2 {[%clk 0:02:36.7]}
15... O-O-O {[%clk 0:02:06.4]} 16. O-O {[%clk 0:02:31.3]} 16... Rdh8 {[%clk
0:02:05.4]} 17. Ne4 {[%clk 0:02:25.1]} 17... Bxe4 {[%clk 0:02:00.5]} 18. fxe4
{[%clk 0:02:24.9]} 18... Qg5 {[%clk 0:02:01.1]} 19. Qf3 {[%clk 0:02:19.5]} 19...
Rxh2 {[%clk 0:01:57.9]} 20. e5 {[%clk 0:02:19.3]} 20... Nb6 {[%clk 0:01:53.7]}
21. Rae1 {[%clk 0:01:55.3]} 21... Nd5 {[%clk 0:01:50.7]} 22. Qxf7 {[%clk
0:01:53.4]} 22... Qxg3 {[%clk 0:01:49.1]} 23. Qxe6+ {[%clk 0:01:53.2]} 23... Kb8
{[%clk 0:01:49.1]} 24. Rf8+ {[%clk 0:01:29.2]} 24... Rxf8 {[%clk 0:01:46.5]} 25.
Qxd5 {[%clk 0:01:28]} 25... Rxg2+ {[%clk 0:01:46.2]} 0-1

[Event "*** Titled Tuesday Blitz"]
[Site "Chess.com"]
[Date "2020.11.03"]
[Round "11"]
[White "GMG"]
[Black "boasovietica"]
[Result "1-0"]
[WhiteElo "2718"]
[BlackElo "2561"]
[TimeControl "180+1"]
[EndTime "12:07:19 PST"]
[Termination "GMG won by resignation"]

1. Nf3 {[%clk 0:03:00.9]} 1... c5 {[%clk 0:02:58]} 2. c4 {[%clk 0:03:00.8]} 2...
Nc6 {[%clk 0:02:58]} 3. Nc3 {[%clk 0:03:01]} 3... e5 {[%clk 0:02:57.4]} 4. e3
{[%clk 0:03:00.7]} 4... Nf6 {[%clk 0:02:57]} 5. d4 {[%clk 0:03:01.3]} 5... cxd4
{[%clk 0:02:55.4]} 6. exd4 {[%clk 0:03:02.2]} 6... e4 {[%clk 0:02:55.6]} 7. Ne5
{[%clk 0:03:00.6]} 7... Qa5 {[%clk 0:02:51.5]} 8. Bf4 {[%clk 0:02:44.2]} 8...
Bb4 {[%clk 0:02:46.7]} 9. Qd2 {[%clk 0:02:44]} 9... O-O {[%clk 0:02:25.9]} 10.
Be2 {[%clk 0:02:43.1]} 10... d6 {[%clk 0:02:02.5]} 11. Nxc6 {[%clk 0:02:34.8]}
11... bxc6 {[%clk 0:02:03.4]} 12. O-O {[%clk 0:02:33]} 12... Ba6 {[%clk
0:01:54.8]} 13. Rfc1 {[%clk 0:02:29.4]} 13... d5 {[%clk 0:01:52.4]} 14. Bg5
{[%clk 0:02:12.4]} 14... Nd7 {[%clk 0:01:19.9]} 15. a3 {[%clk 0:01:48.1]} 15...
Bxc3 {[%clk 0:01:18.7]} 16. Rxc3 {[%clk 0:01:48.8]} 16... Nb6 {[%clk 0:01:11.4]}
17. b4 {[%clk 0:01:43.9]} 17... Qa4 {[%clk 0:01:10.7]} 18. Bd1 {[%clk
0:01:42.9]} 18... Nxc4 {[%clk 0:01:06.8]} 19. Bxa4 {[%clk 0:01:39.7]} 19... Nxd2
{[%clk 0:01:05.3]} 20. Bxd2 {[%clk 0:01:40.6]} 1-0

[Event "*** Titled Tuesday Blitz"]
[Site "Chess.com"]
[Date "2020.11.03"]
[Round "11"]
[White "Ural_bogatyr"]
[Black "monalize"]
[Result "0-1"]
[WhiteElo "2370"]
[BlackElo "2296"]
[TimeControl "180+1"]
[EndTime "12:07:21 PST"]
[Termination "monalize won by resignation"]

1. e4 {[%clk 0:02:56.6]} 1... c5 {[%clk 0:02:58.3]} 2. Nf3 {[%clk 0:02:55.3]}
2... d6 {[%clk 0:02:58.4]} 3. d4 {[%clk 0:02:55.3]} 3... cxd4 {[%clk 0:02:57.9]}
4. Qxd4 {[%clk 0:02:56.2]} 4... a6 {[%clk 0:02:51.8]} 5. Be3 {[%clk 0:02:55.7]}
5... e5 {[%clk 0:02:49.1]} 6. Qd2 {[%clk 0:02:55.2]} 6... Nf6 {[%clk 0:02:47.9]}
7. Nc3 {[%clk 0:02:56.1]} 7... b5 {[%clk 0:02:47.3]} 8. O-O-O {[%clk 0:02:55]}
8... Qc7 {[%clk 0:02:41.5]} 9. Nd5 {[%clk 0:02:42.8]} 9... Nxd5 {[%clk
0:02:40.5]} 10. exd5 {[%clk 0:02:43.7]} 10... Be7 {[%clk 0:02:30.9]} 11. Bd3
{[%clk 0:02:38.4]} 11... O-O {[%clk 0:02:28]} 12. Bg5 {[%clk 0:02:36.3]} 12...
f6 {[%clk 0:02:27.1]} 13. Bh4 {[%clk 0:02:33.3]} 13... Nd7 {[%clk 0:02:16.1]}
14. g4 {[%clk 0:02:26.3]} 14... Nc5 {[%clk 0:02:10.1]} 15. g5 {[%clk 0:02:26.5]}
15... f5 {[%clk 0:02:09.2]} 16. g6 {[%clk 0:02:21.1]} 16... e4 {[%clk
0:01:55.2]} 17. gxh7+ {[%clk 0:02:20.1]} 17... Kh8 {[%clk 0:01:54.6]} 18. Bxe7
{[%clk 0:02:19.9]} 18... Qxe7 {[%clk 0:01:53.7]} 19. Rde1 {[%clk 0:02:16]} 19...
Qf6 {[%clk 0:01:52.9]} 20. Ng5 {[%clk 0:02:14.2]} 20... exd3 {[%clk 0:01:51.7]}
21. f3 {[%clk 0:02:01.7]} 21... dxc2 {[%clk 0:01:45]} 22. Kxc2 {[%clk
0:01:36.4]} 22... f4 {[%clk 0:01:42.4]} 23. Ne4 {[%clk 0:01:32.4]} 23... Bf5
{[%clk 0:01:41.8]} 24. Kb1 {[%clk 0:01:31.3]} 24... Bxe4+ {[%clk 0:01:40.2]} 25.
fxe4 {[%clk 0:01:29.9]} 25... Rae8 {[%clk 0:01:35.6]} 0-1

[Event "*** Titled Tuesday Blitz"]
[Site "Chess.com"]
[Date "2020.11.03"]
[Round "11"]
[White "ssrija97"]
[Black "AlexSuv"]
[Result "0-1"]
[WhiteElo "2311"]
[BlackElo "2552"]
[TimeControl "180+1"]
[EndTime "12:07:23 PST"]
[Termination "AlexSuv won by resignation"]

1. e4 {[%clk 0:03:00.9]} 1... c5 {[%clk 0:02:58.2]} 2. Nf3 {[%clk 0:03:00.8]}
2... e6 {[%clk 0:02:58]} 3. d4 {[%clk 0:03:00.9]} 3... cxd4 {[%clk 0:02:58.9]}
4. Nxd4 {[%clk 0:03:01.4]} 4... Nc6 {[%clk 0:02:59.6]} 5. Be3 {[%clk 0:02:53.2]}
5... Qc7 {[%clk 0:02:56.4]} 6. Nc3 {[%clk 0:02:48.7]} 6... a6 {[%clk 0:02:55.4]}
7. Qd2 {[%clk 0:02:45.3]} 7... Nf6 {[%clk 0:02:55.4]} 8. f3 {[%clk 0:02:44.8]}
8... Ne5 {[%clk 0:02:54]} 9. O-O-O {[%clk 0:02:39.5]} 9... Bb4 {[%clk 0:02:54]}
10. Nb3 {[%clk 0:02:05.8]} 10... b5 {[%clk 0:02:52]} 11. Qd4 {[%clk 0:02:05.3]}
11... Nc6 {[%clk 0:02:48.5]} 12. Qb6 {[%clk 0:01:58.2]} 12... Qxb6 {[%clk
0:02:43.5]} 13. Bxb6 {[%clk 0:01:59.1]} 13... O-O {[%clk 0:02:44]} 14. Ne2
{[%clk 0:01:51.1]} 14... d5 {[%clk 0:02:42.6]} 15. Ned4 {[%clk 0:01:47.8]} 15...
Nxd4 {[%clk 0:02:39.7]} 16. Nxd4 {[%clk 0:01:43.1]} 16... Bb7 {[%clk 0:02:38.9]}
17. c3 {[%clk 0:01:36.9]} 17... Be7 {[%clk 0:02:35.7]} 18. exd5 {[%clk
0:01:29.3]} 18... Nxd5 {[%clk 0:02:27.8]} 19. Ba5 {[%clk 0:01:27.6]} 19... Rac8
{[%clk 0:02:27.6]} 20. Kb1 {[%clk 0:01:24.6]} 20... Rfd8 {[%clk 0:02:24.9]} 21.
Bd3 {[%clk 0:01:23]} 21... Rd7 {[%clk 0:02:21.4]} 22. Be4 {[%clk 0:01:22.9]}
22... Ne3 {[%clk 0:02:15.9]} 23. Bxb7 {[%clk 0:01:20.2]} 23... Rxb7 {[%clk
0:02:16.8]} 24. Rd2 {[%clk 0:01:17.7]} 24... Nc4 {[%clk 0:02:16]} 25. Rd3 {[%clk
0:01:05.4]} 25... Nxa5 {[%clk 0:02:15.7]} 26. b3 {[%clk 0:01:03.9]} 26... Nc6
{[%clk 0:02:15.2]} 27. Nxc6 {[%clk 0:01:01.6]} 27... Rxc6 {[%clk 0:02:16.1]} 28.
Rhd1 {[%clk 0:01:02.1]} 28... g5 {[%clk 0:02:15.6]} 29. Kc2 {[%clk 0:00:59.1]}
29... Rbc7 {[%clk 0:02:14.5]} 0-1

[Event "*** Titled Tuesday Blitz"]
[Site "Chess.com"]
[Date "2020.11.03"]
[Round "11"]
[White "AndrewMaco"]
[Black "aleksey1203borisovi4"]
[Result "0-1"]
[WhiteElo "2670"]
[BlackElo "2513"]
[TimeControl "180+1"]
[EndTime "12:07:26 PST"]
[Termination "aleksey1203borisovi4 won on time"]

1. e4 {[%clk 0:02:53.3]} 1... g6 {[%clk 0:03:00.9]} 2. d4 {[%clk 0:02:51.8]}
2... Bg7 {[%clk 0:03:01.8]} 3. c3 {[%clk 0:02:51.9]} 3... d6 {[%clk 0:02:53.6]}
4. Nf3 {[%clk 0:02:51.3]} 4... Nf6 {[%clk 0:02:54.2]} 5. Bd3 {[%clk 0:02:50.5]}
5... O-O {[%clk 0:02:54.8]} 6. O-O {[%clk 0:02:36.8]} 6... Nc6 {[%clk
0:02:54.2]} 7. h3 {[%clk 0:02:36.8]} 7... Bd7 {[%clk 0:02:52.6]} 8. e5 {[%clk
0:02:30.9]} 8... Nd5 {[%clk 0:02:42]} 9. Re1 {[%clk 0:02:27.1]} 9... dxe5 {[%clk
0:02:37.6]} 10. dxe5 {[%clk 0:02:27.4]} 10... Be6 {[%clk 0:02:32.5]} 11. Qe2
{[%clk 0:02:25.6]} 11... Qd7 {[%clk 0:02:27.7]} 12. Nbd2 {[%clk 0:02:22.2]}
12... Nf4 {[%clk 0:02:19.9]} 0-1

[Event "*** Titled Tuesday Blitz"]
[Site "Chess.com"]
[Date "2020.11.03"]
[Round "11"]
[White "CM_rui"]
[Black "Kaslask"]
[Result "0-1"]
[WhiteElo "2386"]
[BlackElo "2320"]
[TimeControl "180+1"]
[EndTime "12:07:28 PST"]
[Termination "Kaslask won by checkmate"]

1. e4 {[%clk 0:03:00.9]} 1... c5 {[%clk 0:02:58.9]} 2. Nf3 {[%clk 0:03:00.4]}
2... Nc6 {[%clk 0:02:57.5]} 3. c4 {[%clk 0:03:00.2]} 3... g6 {[%clk 0:02:55]} 4.
d4 {[%clk 0:02:59.8]} 4... cxd4 {[%clk 0:02:54.9]} 5. Nxd4 {[%clk 0:03:00.7]}
5... Nf6 {[%clk 0:02:54.6]} 6. Nc3 {[%clk 0:03:00.3]} 6... Nxd4 {[%clk
0:02:55.1]} 7. Qxd4 {[%clk 0:03:00.8]} 7... d6 {[%clk 0:02:55.5]} 8. Be2 {[%clk
0:02:59.7]} 8... Bg7 {[%clk 0:02:55.5]} 9. Be3 {[%clk 0:02:59.9]} 9... O-O
{[%clk 0:02:54.4]} 10. Qd2 {[%clk 0:02:59.9]} 10... Qa5 {[%clk 0:02:53.9]} 11.
O-O {[%clk 0:02:59.8]} 11... Be6 {[%clk 0:02:52]} 12. f3 {[%clk 0:02:55.8]}
12... Rfc8 {[%clk 0:02:51.3]} 13. b3 {[%clk 0:02:46.9]} 13... a6 {[%clk
0:02:50.7]} 14. Rac1 {[%clk 0:02:45.2]} 14... b5 {[%clk 0:02:39.8]} 15. cxb5
{[%clk 0:02:37]} 15... axb5 {[%clk 0:02:38.2]} 16. Nxb5 {[%clk 0:02:23]} 16...
Qxd2 {[%clk 0:02:36.4]} 17. Bxd2 {[%clk 0:02:17.6]} 17... Rxa2 {[%clk
0:02:32.3]} 18. Rxc8+ {[%clk 0:02:05.5]} 18... Bxc8 {[%clk 0:02:31.5]} 19. Rd1
{[%clk 0:02:05.4]} 19... Be6 {[%clk 0:02:25.7]} 20. b4 {[%clk 0:02:01]} 20...
Bb3 {[%clk 0:02:18]} 21. Rb1 {[%clk 0:01:18.5]} 21... Rxd2 {[%clk 0:02:15.5]}
22. Bf1 {[%clk 0:01:16.3]} 22... Bc2 {[%clk 0:02:11.4]} 23. Ra1 {[%clk 0:01:14]}
23... Nd7 {[%clk 0:01:59.7]} 24. Ra7 {[%clk 0:01:11.9]} 24... Rd1 {[%clk
0:01:50.4]} 25. Rxd7 {[%clk 0:01:04]} 25... Bd3 {[%clk 0:01:48.1]} 26. Rd8+
{[%clk 0:01:04.9]} 26... Bf8 {[%clk 0:01:46.9]} 27. Nc3 {[%clk 0:01:02.6]} 27...
Rxf1# {[%clk 0:01:45.6]} 0-1

[Event "*** Titled Tuesday Blitz"]
[Site "Chess.com"]
[Date "2020.11.03"]
[Round "11"]
[White "UmarovSabir"]
[Black "Manukyan_Artak"]
[Result "1-0"]
[WhiteElo "2320"]
[BlackElo "2401"]
[TimeControl "180+1"]
[EndTime "12:07:32 PST"]
[Termination "UmarovSabir won by checkmate"]

1. e4 {[%clk 0:02:58.8]} 1... c5 {[%clk 0:02:59.1]} 2. a3 {[%clk 0:02:57.6]}
2... Nc6 {[%clk 0:02:56.2]} 3. b4 {[%clk 0:02:56.8]} 3... cxb4 {[%clk
0:02:55.8]} 4. axb4 {[%clk 0:02:56.8]} 4... Nxb4 {[%clk 0:02:55.1]} 5. c3 {[%clk
0:02:57]} 5... Nc6 {[%clk 0:02:54.9]} 6. d4 {[%clk 0:02:57]} 6... d5 {[%clk
0:02:52.4]} 7. exd5 {[%clk 0:02:56.9]} 7... Qxd5 {[%clk 0:02:52]} 8. Na3 {[%clk
0:02:57.2]} 8... e6 {[%clk 0:02:48.4]} 9. Nb5 {[%clk 0:02:56.8]} 9... Qd8 {[%clk
0:02:47.3]} 10. Bf4 {[%clk 0:02:56.3]} 10... e5 {[%clk 0:02:46]} 11. dxe5 {[%clk
0:02:48.7]} 11... Be6 {[%clk 0:02:33.1]} 12. Qxd8+ {[%clk 0:01:56.1]} 12... Rxd8
{[%clk 0:02:31.1]} 13. Nc7+ {[%clk 0:01:41.3]} 13... Kd7 {[%clk 0:02:30]} 14.
Nxe6 {[%clk 0:01:37]} 14... Kxe6 {[%clk 0:02:30.9]} 15. Nf3 {[%clk 0:01:22.7]}
15... h6 {[%clk 0:02:22.2]} 16. Bc4+ {[%clk 0:01:20.4]} 16... Kf5 {[%clk
0:02:20.9]} 17. Bg3 {[%clk 0:01:01.3]} 17... f6 {[%clk 0:02:03.4]} 18. Nh4+
{[%clk 0:00:55.1]} 18... Kg5 {[%clk 0:01:50]} 19. f4+ {[%clk 0:00:53.1]} 19...
Kg4 {[%clk 0:01:45.5]} 20. Be2# {[%clk 0:00:51.2]} 1-0

[Event "*** Titled Tuesday Blitz"]
[Site "Chess.com"]
[Date "2020.11.03"]
[Round "11"]
[White "oogee"]
[Black "yourstrulyme"]
[Result "0-1"]
[WhiteElo "2193"]
[BlackElo "2398"]
[TimeControl "180+1"]
[EndTime "12:07:48 PST"]
[Termination "yourstrulyme won by resignation"]

1. d4 {[%clk 0:03:00.8]} 1... Nf6 {[%clk 0:03:00]} 2. c4 {[%clk 0:02:53.9]} 2...
e6 {[%clk 0:03:00.9]} 3. g3 {[%clk 0:02:52.9]} 3... d5 {[%clk 0:03:01.3]} 4. Nf3
{[%clk 0:02:52.1]} 4... Be7 {[%clk 0:03:01.7]} 5. Bg2 {[%clk 0:02:51.6]} 5...
O-O {[%clk 0:03:02.3]} 6. O-O {[%clk 0:02:51.3]} 6... dxc4 {[%clk 0:03:02.8]} 7.
Bg5 {[%clk 0:02:50.2]} 7... Nc6 {[%clk 0:02:56.9]} 8. e3 {[%clk 0:02:48.5]} 8...
a6 {[%clk 0:02:54.2]} 9. a4 {[%clk 0:02:45.8]} 9... Na5 {[%clk 0:02:53.8]} 10.
Qe2 {[%clk 0:02:42.6]} 10... Bd7 {[%clk 0:02:49.5]} 11. Na3 {[%clk 0:02:40.4]}
11... b5 {[%clk 0:02:37.5]} 12. Ne5 {[%clk 0:02:37.1]} 12... Nd5 {[%clk
0:02:25.8]} 13. Nxd7 {[%clk 0:02:35.1]} 13... Qxd7 {[%clk 0:02:24.9]} 14. Bxe7
{[%clk 0:02:34.4]} 14... Qxe7 {[%clk 0:02:22.2]} 15. axb5 {[%clk 0:02:33.4]}
15... Nb3 {[%clk 0:02:15.1]} 16. Rad1 {[%clk 0:02:24.7]} 16... axb5 {[%clk
0:02:13]} 17. Nxb5 {[%clk 0:02:23.3]} 17... Qb4 {[%clk 0:02:13]} 18. Bxd5 {[%clk
0:02:08.4]} 18... exd5 {[%clk 0:02:09.8]} 19. Nxc7 {[%clk 0:02:07.4]} 19... Ra5
{[%clk 0:02:06.4]} 20. Qh5 {[%clk 0:01:46.6]} 20... Qd6 {[%clk 0:02:00]} 21. Qe5
{[%clk 0:01:42.8]} 21... Qc6 {[%clk 0:01:41.5]} 22. e4 {[%clk 0:01:34.1]} 22...
dxe4 {[%clk 0:01:31.7]} 23. Qd5 {[%clk 0:01:32.4]} 23... Rxd5 {[%clk 0:01:30.2]}
0-1

[Event "*** Titled Tuesday Blitz"]
[Site "Chess.com"]
[Date "2020.11.03"]
[Round "11"]
[White "lucachess49"]
[Black "Akhayan"]
[Result "1-0"]
[WhiteElo "2364"]
[BlackElo "2259"]
[TimeControl "180+1"]
[EndTime "12:07:49 PST"]
[Termination "lucachess49 won by resignation"]

1. d4 {[%clk 0:03:00.9]} 1... d5 {[%clk 0:02:58.9]} 2. c4 {[%clk 0:03:01.1]}
2... e6 {[%clk 0:02:59.1]} 3. Nc3 {[%clk 0:03:00.5]} 3... Nf6 {[%clk 0:02:58.7]}
4. Bg5 {[%clk 0:02:59.9]} 4... Be7 {[%clk 0:02:58.9]} 5. cxd5 {[%clk 0:02:59.3]}
5... exd5 {[%clk 0:02:58.5]} 6. e3 {[%clk 0:02:59]} 6... O-O {[%clk 0:02:58.7]}
7. Bd3 {[%clk 0:02:59.2]} 7... c6 {[%clk 0:02:59]} 8. Qc2 {[%clk 0:02:58.2]}
8... Nbd7 {[%clk 0:02:58.7]} 9. Nf3 {[%clk 0:02:56.1]} 9... Re8 {[%clk
0:02:58.2]} 10. O-O {[%clk 0:02:54.5]} 10... h6 {[%clk 0:02:56.5]} 11. Bh4
{[%clk 0:02:53.4]} 11... Nf8 {[%clk 0:02:56.6]} 12. Ne5 {[%clk 0:02:52.2]} 12...
Ng4 {[%clk 0:02:46.5]} 13. Bxe7 {[%clk 0:02:34.3]} 13... Qxe7 {[%clk 0:02:45.6]}
14. Nxg4 {[%clk 0:02:35.2]} 14... Bxg4 {[%clk 0:02:45.1]} 15. Rae1 {[%clk
0:02:36.1]} 15... Qf6 {[%clk 0:02:39.6]} 16. f3 {[%clk 0:02:35.3]} 16... Bd7
{[%clk 0:02:38.1]} 17. Qf2 {[%clk 0:02:29.3]} 17... Re7 {[%clk 0:02:34.8]} 18.
e4 {[%clk 0:02:25.9]} 18... dxe4 {[%clk 0:02:00.4]} 19. fxe4 {[%clk 0:02:26.8]}
19... Qxf2+ {[%clk 0:01:59.5]} 20. Rxf2 {[%clk 0:02:27.2]} 20... Rae8 {[%clk
0:01:58.5]} 21. Rfe2 {[%clk 0:02:24.7]} 21... Ng6 {[%clk 0:01:57.4]} 22. g3
{[%clk 0:02:23.7]} 22... c5 {[%clk 0:01:53.4]} 23. Nd5 {[%clk 0:02:22.7]} 23...
cxd4 {[%clk 0:01:47.7]} 24. Nxe7+ {[%clk 0:02:22.5]} 24... Rxe7 {[%clk
0:01:45.9]} 25. e5 {[%clk 0:02:22.9]} 25... Bg4 {[%clk 0:01:42]} 26. Re4 {[%clk
0:02:20.2]} 26... Bf5 {[%clk 0:01:41.4]} 27. Rxd4 {[%clk 0:02:20.1]} 27... Nxe5
{[%clk 0:01:36.7]} 28. Rd8+ {[%clk 0:02:17.5]} 28... Kh7 {[%clk 0:01:36.1]} 29.
Bxf5+ {[%clk 0:02:17.5]} 29... g6 {[%clk 0:01:36.5]} 30. Be4 {[%clk 0:01:36.3]}
30... f5 {[%clk 0:01:26.1]} 31. Bg2 {[%clk 0:01:26.7]} 31... Nf3+ {[%clk
0:01:25.6]} 32. Bxf3 {[%clk 0:01:27.2]} 32... Rxe1+ {[%clk 0:01:25.9]} 33. Kf2
{[%clk 0:01:26.7]} 33... Rb1 {[%clk 0:01:25]} 34. Rd7+ {[%clk 0:01:26.9]} 1-0

[Event "*** Titled Tuesday Blitz"]
[Site "Chess.com"]
[Date "2020.11.03"]
[Round "11"]
[White "AryanTari"]
[Black "Vesper2018"]
[Result "1-0"]
[WhiteElo "2879"]
[BlackElo "2625"]
[TimeControl "180+1"]
[EndTime "12:07:51 PST"]
[Termination "AryanTari won by resignation"]

1. e3 {[%clk 0:03:00.9]} 1... d5 {[%clk 0:02:57]} 2. Nf3 {[%clk 0:02:55.9]} 2...
Nf6 {[%clk 0:02:56.1]} 3. c4 {[%clk 0:02:56]} 3... e6 {[%clk 0:02:54.2]} 4. Nc3
{[%clk 0:02:56]} 4... c5 {[%clk 0:02:53.4]} 5. cxd5 {[%clk 0:02:55.5]} 5... exd5
{[%clk 0:02:52.5]} 6. Bb5+ {[%clk 0:02:54.7]} 6... Bd7 {[%clk 0:02:49.9]} 7.
Bxd7+ {[%clk 0:02:54.2]} 7... Nbxd7 {[%clk 0:02:48.5]} 8. d4 {[%clk 0:02:53.7]}
8... c4 {[%clk 0:02:48]} 9. O-O {[%clk 0:02:49.2]} 9... Bd6 {[%clk 0:02:44.7]}
10. b3 {[%clk 0:02:47.1]} 10... cxb3 {[%clk 0:02:34.2]} 11. Qxb3 {[%clk
0:02:48]} 11... Qb6 {[%clk 0:02:27.2]} 12. Nxd5 {[%clk 0:02:46.4]} 12... Nxd5
{[%clk 0:02:11.8]} 13. Qxd5 {[%clk 0:02:46]} 13... O-O {[%clk 0:02:12.1]} 14.
Bd2 {[%clk 0:02:28.9]} 14... Nf6 {[%clk 0:02:09.1]} 15. Qb3 {[%clk 0:02:29.1]}
15... Qxb3 {[%clk 0:02:02.7]} 16. axb3 {[%clk 0:02:30]} 16... Ne4 {[%clk
0:02:03.2]} 17. Rfc1 {[%clk 0:02:25.2]} 17... a6 {[%clk 0:01:58.9]} 18. Ba5
{[%clk 0:02:19.5]} 18... Rfc8 {[%clk 0:01:58]} 19. Nd2 {[%clk 0:02:17.9]} 19...
Nxd2 {[%clk 0:01:53.8]} 20. Bxd2 {[%clk 0:02:17.8]} 20... f5 {[%clk 0:01:53.7]}
21. Kf1 {[%clk 0:02:15.3]} 21... Kf7 {[%clk 0:01:51.1]} 22. Ke2 {[%clk
0:02:14.7]} 22... Ke6 {[%clk 0:01:47.7]} 23. Kd3 {[%clk 0:02:13.9]} 23... g5
{[%clk 0:01:39.5]} 24. f3 {[%clk 0:02:09.6]} 24... h5 {[%clk 0:01:32.6]} 25. e4
{[%clk 0:02:06.4]} 25... fxe4+ {[%clk 0:01:09.3]} 26. fxe4 {[%clk 0:02:07.3]}
26... Rf8 {[%clk 0:01:09.7]} 27. e5 {[%clk 0:02:02.7]} 27... Be7 {[%clk
0:01:09.6]} 28. Be3 {[%clk 0:01:59.8]} 28... Rac8 {[%clk 0:01:02.5]} 29. Ke4
{[%clk 0:01:58.9]} 29... Bb4 {[%clk 0:00:40.7]} 30. d5+ {[%clk 0:01:58.2]} 30...
Ke7 {[%clk 0:00:41]} 31. Bxg5+ {[%clk 0:01:58.2]} 1-0